Cogmind - Beta 17 @@@ ROGUE MODE // 2026.07.17 @ 21:38:58 Player: oskarw Result: Self-destructed Performance ------------- Evolutions (1) 500 Regions Visited (2) 400 Robots Destroyed (12) 60 Value Destroyed (286) 286 Prototype IDs (0) 0 Alien Tech Used (0) 0 Bonus (0) 0 TOTAL SCORE: 1246 Bonus ------- None Cogmind --------- Core Integrity 297/400 Matter 142/300 Energy 250/250 System Corruption 0% Temperature Cool (0) Movement Core (400) Ox7 Location -9/Materials Parts ------- > --- POWER (1) -------- Ion Engine > --- PROPULSION (4) --- (None) > --- UTILITY (2) ------ Medium Storage Unit Terrain Scanner > --- WEAPON (2) ------- Heavy Assault Rifle Grenade Launcher > --- INVENTORY (10) --- Ion Engine Light Treads Flight Unit Small Storage Unit Signal Interpreter Medium Laser Medium Laser Small Laser Light Assault Rifle Datajack Peak State ------------ > --- POWER ------------ Ion Engine > --- PROPULSION ------- Aluminum Leg Aluminum Leg Aluminum Leg Flight Unit > --- UTILITY ---------- Medium Storage Unit Terrain Scanner > --- WEAPON ----------- Medium Laser Heavy Assault Rifle > --- INVENTORY -------- Ion Engine Light Treads Flight Unit Small Storage Unit Signal Interpreter Medium Laser Small Laser Light Assault Rifle Grenade Launcher Datajack [Rating: 11] Favorites ----------- Power Ion Engine Engine Ion Engine Propulsion Aluminum Leg Leg Aluminum Leg Flight Unit Flight Unit Utility Terrain Scanner Device Terrain Scanner Storage Medium Storage Unit Weapon Medium Laser Energy Gun Medium Laser Ballistic Gun Assault Rifle Launcher Grenade Launcher Build | -11 -10 -9 ------- Run | Yrd Mat Mat Slots Evolved 2 | . . 2 Power . | . . . Propulsion 2 | . . 2 Utility . | . . . Weapon . | . . . Parts Attached 14 | 6 3 5 Power 1 | 1 . . Engine 1 | 1 . . Core . | . . . Reactor . | . . . Propulsion 5 | 3 . 2 Treads . | . . . Leg 3 | 3 . . Wheel . | . . . Hover . | . . . Flight 2 | . . 2 Utility 3 | . 3 . Device 1 | . 1 . Storage 2 | . 2 . Processor . | . . . Hackware . | . . . Protection . | . . . Artifact . | . . . Weapon 5 | 2 . 3 Energy Gun 2 | 1 . 1 Energy Cannon . | . . . Ballistic Gun 2 | 1 . 1 Ballistic Cannon . | . . . Launcher 1 | . . 1 Special Weapon . | . . . Impact Weapon . | . . . Slashing Weapon . | . . . Piercing Weapon . | . . . Special Melee Weapon . | . . . Unidentified Prototypes . | . . . Parts Lost 4 | . . 4 Power . | . . . Propulsion 4 | . . 4 Utility . | . . . Weapon . | . . . Highest Loss Streak 4 | . . 4 To Critical Strikes . | . . . Average Backups 6 | . 6 9 Power . | . . 1 Propulsion 2 | . 2 2 Utility . | . . 1 Weapon 3 | . 2 4 Tool/Special . | . . . Unused Backups 7 | . 1 6 Power 1 | . . 1 Propulsion 2 | . 1 1 Utility 1 | . . 1 Weapon 2 | . . 2 Tool/Special 1 | . . 1 Average Slot Usage (%) 95 | . 96 93 Engine 12 | . 14 11 Leg 28 | . 28 29 Flight 3 | . . 8 Device 12 | . 13 11 Storage 11 | . 11 11 Energy Gun 12 | . 14 10 Ballistic Gun 12 | . 14 11 Peak Build Rating 11 | 5 8 11 Average Rating 7 | 3 7 9 On Entrance 4 | . 5 8 Avg Prop Armor Cover (%) 2 | . . 2 Naked Turns . | . . . Heaviest Build 22 | 9 20 22 Greatest Support 30 | 20 20 30 Greatest Overweight (x) 7 | . . 7 Average Overweight (x) . | . . . Largest Inventory Capacity 10 | 5 10 10 Average Capacity 8 | 5 8 10 Most Carried 10 | 3 10 10 Average Carried 6 | . 6 9 Final Capacity 10 | 5 10 10 Final Carried 10 | 3 10 10 Class Distribution -------------------- 84% | Mutant 15% | Scavenger-Mutant Dominant Class ---------------- Mutant | -10/Materials Mutant | -9/Materials Resources | -11 -10 -9 ----------- Run | Yrd Mat Mat Matter Collected 348 | 230 14 104 Remotely . | . . . Salvage Created 258 | 37 14 207 Parts 24 | 3 2 19 Haulers Intercepted . | . . . Recyclers Shooed 3 | . . 3 Parts Field Recycled . | . . . Retrieved Matter . | . . . Parts Self-Destructed . | . . . Prevented . | . . . Parts Restored . | . . . Kills | -11 -10 -9 ------- Run | Yrd Mat Mat Combat Hostiles Destroyed 11 | 1 1 9 Guns 6 | 1 1 4 AOE 5 | . . 5 Classes Destroyed 4 | 1 1 2 Watcher 1 | . . 1 Swarmer 7 | . 1 6 Grunt 3 | 1 . 2 Sentry 1 | . . 1 Best Kill Streak 4 | 1 1 4 Combat Bots Only 3 | 1 1 3 Max Kills in Single Turn 2 | 1 1 2 Gunslinging . | . . . Exploded 2 | . . 2 Melee . | . . . Uniques/NPCs Destroyed . | . . . Combat | -11 -10 -9 -------- Run | Yrd Mat Mat Hostile Shots Fired 78 | 4 13 61 Missed 23 | 1 5 17 Hits 55 | 3 8 44 Projectile 55 | 3 8 44 Critical Strikes 3 | . . 3 Damage Taken 662 | 36 74 552 Core 103 | . . 103 Absorbed by Shields . | . . . Core Remaining (%) 100 | 100 100 . Volleys Fired 38 | 3 4 31 Largest 2 | 2 2 2 Hottest 73 | 70 70 73 Shots Fired 75 | 6 8 61 Gun 72 | 6 8 58 Cannon . | . . . Launcher 3 | . . 3 Special . | . . . Kinetic 38 | 3 4 31 Thermal 34 | 3 4 27 Explosive 3 | . . 3 Electromagnetic . | . . . Robot Hit Streak 7 | 2 3 7 Robot Miss Streak 8 | 1 2 8 Penetration Max . | . . . Secondary Targets . | . . . Shots Hit Robots 35 | 3 5 27 Core Hits 23 | 2 2 19 Critical Kills . | . . . Critical Parts Destroyed . | . . . Critical Strikes . | . . . Melee Attacks . | . . . Impact . | . . . Slashing . | . . . Piercing . | . . . Sneak Attacks . | . . . Combat Hostiles . | . . . Follow-up Attacks . | . . . Damage Inflicted 906 | 37 64 805 Guns 486 | 36 64 386 Cannons . | . . . Explosions 402 | . . 402 Melee . | . . . Ramming 18 | 1 . 17 Kinetic 242 | 24 28 190 Thermal 244 | 12 36 196 Explosive 266 | . . 266 Electromagnetic 136 | . . 136 Impact . | . . . Slashing . | . . . Piercing . | . . . Highest Corruption . | . . . Average Corruption . | . . . Corruption Purged . | . . . Corruption Blocked . | . . . Overload Shots . | . . . Overflow Damage 39 | . . 39 Projectiles . | . . . Explosions 39 | . . 39 Melee . | . . . Knockbacks . | . . . Impact . | . . . Kinetic . | . . . Secondary . | . . . Self-Inflicted Damage 93 | . . 93 Shots 3 | . . 3 Rammed . | . . . Targets Rammed 2 | 1 . 1 Kicked 2 | 1 . 1 Crushed . | . . . Highest Temperature 36 | 8 36 36 Average Temperature 15 | 4 19 15 Received Heat Transfer 141 | 18 . 123 Siege Activations . | . . . Martial Activations . | . . . Shielding Activations . | . . . Robots Disrupted 1 | . . 1 Combat Hostiles 1 | . . 1 Robots Corrupted . | . . . Combat Hostiles . | . . . Parts Fried . | . . . Impact Corruptions . | . . . Robots Melted . | . . . Combat Hostiles . | . . . Parts Melted 2 | . . 2 Heat Transferred 692 | 37 111 544 Parts Sabotaged . | . . . Parts Stolen . | . . . Parts Stripped . | . . . Power Chain Reactions . | . . . Alert | -11 -10 -9 ------- Run | Yrd Mat Mat Maximum Alert Level 1 | . . 1 Low Security (%) 99 | 100 100 99 Level 1 . | . . . Level 2 . | . . . Level 3 . | . . . Level 4 . | . . . Level 5 . | . . . High Security . | . . . Max Security . | . . . Peak Influence 212 | 20 70 212 Initial 11 | . 6 11 Average 36 | 2 12 83 Influence Increases 495 | 20 84 391 Destroy 0b10 Robot/C 220 | 20 20 180 Destroy 0b10 Robot/NC 5 | . . 5 Destroy Leader 42 | . . 42 Successful Hack 7 | . 4 3 Disable Machine 60 | . . 60 Destroy Structure 26 | . . 26 Partial Spotted 15 | . . 15 Lose Combat Pursuer 120 | . 60 60 Influence Decreases 283 | 10 66 207 Entered New Map 21 | . 4 17 Time Decay 222 | 10 62 150 Lost Part 40 | . . 40 Squads Dispatched . | . . . Investigation . | . . . Extermination . | . . . Reinforcement . | . . . Assault . | . . . Garrison . | . . . Intercept . | . . . Searches Triggered . | . . . Construction Impeded . | . . . Haulers Reinforced . | . . . Active Scanning Responses . | . . . Cargo Convoy Interrupts . | . . . Stealth | -11 -10 -9 --------- Run | Yrd Mat Mat Distress Signals 2 | . 1 1 Communications Jammed . | . . . Distress Signals . | . . . Times Spotted 24 | 1 6 17 Peak Tracking Total 5 | 1 5 5 Tactical Retreats 3 | . 1 2 Traps | -11 -10 -9 ------- Run | Yrd Mat Mat Traps Triggered . | . . . Indirectly . | . . . Trap Hack Attempts . | . . . Triggered . | . . . Disarmed . | . . . Reprogrammed . | . . . Reused . | . . . Traps Extracted . | . . . Installed . | . . . Triggered . | . . . Machines | -11 -10 -9 ---------- Run | Yrd Mat Mat Machines Disabled 4 | . . 4 Max in Single Turn 3 | . . 3 Machines Repaired . | . . . Machines Dismantled . | . . . Machines Sabotaged . | . . . Overloaded Fab Kills . | . . . Hacking | -11 -10 -9 --------- Run | Yrd Mat Mat Machines Accessed 5 | . 4 1 Terminals 5 | . 4 1 Fabricators . | . . . Repair Stations . | . . . Recycling Units . | . . . Scanalyzers . | . . . Garrison Access . | . . . Total Hacks 9 | . 7 2 Successful 8 | . 7 1 Failed 1 | . . 1 Catastrophic . | . . . Database Lockouts . | . . . Manual . | . . . Terminals 9 | . 7 2 Fabricators . | . . . Repair Stations . | . . . Recycling Units . | . . . Scanalyzers . | . . . Garrison Access . | . . . Terminal Hacks 8 | . 7 1 Record 6 | . 6 . Locate Traps 1 | . 1 . Maintenance Status 1 | . . 1 Fabricator Hacks . | . . . Repair Station Hacks . | . . . Recycling Unit Hacks . | . . . Scanalyzer . | . . . Garrison Access Hacks . | . . . Unauthorized Hacks . | . . . Terminals . | . . . Fabricators . | . . . Repair Stations . | . . . Recycling Units . | . . . Scanalyzers . | . . . Garrison Access . | . . . Data Cores Recovered . | . . . Used . | . . . Hacking Detections 2 | . 1 1 Full Trace Events 1 | . 1 . Feedback Events . | . . . Feedback Blocked . | . . . Robot Schematics Acquired . | . . . Robots Built . | . . . Authchips . | . . . Time . | . . . Total Robot Build Rating . | . . . Part Schematics Acquired . | . . . Parts Built . | . . . Authchips . | . . . Time . | . . . Total Part Build Rating . | . . . Part Studies Acquired . | . . . Parts Repaired . | . . . Time . | . . . Parts Recycled . | . . . Recycled Matter . | . . . Retrieved Matter . | . . . Retrieved Components . | . . . Parts Scanalyzed . | . . . Part Schematics Acquired . | . . . Parts Damaged . | . . . Bothacking | -11 -10 -9 ------------ Run | Yrd Mat Mat Used RIF Installer . | . . . Robots Hacked . | . . . Non-combat . | . . . Combat . | . . . Robot Hacks Applied . | . . . Relay Couplers Released . | . . . Fabnet Peak Effective % . | . . . Robots Rewired . | . . . Allies Hacked . | . . . Hacks Repelled . | . . . Allies | -11 -10 -9 -------- Run | Yrd Mat Mat Total Allies . | . . . Largest Group . | . . . Highest-Rated Group . | . . . Highest-Rated Ally . | . . . Total Orders . | . . . Ally Attacks . | . . . Total Damage . | . . . Kills . | . . . Allies Corrupted . | . . . Allies Melted . | . . . Intel | -11 -10 -9 ------- Run | Yrd Mat Mat Active Infowar (turns) 764 | . 464 300 Terrain 764 | . 464 300 Robot Analysis Total . | . . . Derelict Logs Recovered . | . . . Drone Launches . | . . . Drone Recoveries . | . . . Exploration | -11 -10 -9 ------------- Run | Yrd Mat Mat Turns Passed 867 | 94 473 300 Spaces Moved 588 | 68 372 148 Core 13 | 12 . 1 Treads . | . . . Legs 573 | 56 372 145 Wheels . | . . . Hover . | . . . Flight 2 | . . 2 Fastest Speed 50 | 50 120 120 Average Speed 119 | 107 120 125 Slowest Speed 400 | 120 120 400 Overloaded Moves . | . . . Propulsion Burnouts . | . . . Robots Hopped . | . . . Potential Cave-ins . | . . . Cave-ins Triggered . | . . . Exploration Rate (%) 22 | 5 46 15 Regions Visited 2 Branch Regions . Pre-discovered Areas . | . . . Known Exits Taken . | . . . Unknown Exits Taken 2 | 1 1 . Scrap Searched . | . . . Spaces Dug . | . . . Terrain Destroyed 24 | . . 24 Melee . | . . . Projectile . | . . . AOE 24 | . . 24 Terrain Rammed . | . . . Walls Destroyed . | . . . Machines Disabled . | . . . Actions | -11 -10 -9 --------- Run | Yrd Mat Mat Total 665 | 79 389 197 Wait 8 | . 3 5 Move 586 | 67 371 148 Hop . | . . . Pick Up 10 | 2 7 1 Fast Attach 8 | 5 2 1 Attach 1 | . . 1 Detach . | . . . Swap 10 | 1 1 8 Drop 2 | . 1 1 Fire 38 | 3 4 31 Melee . | . . . Ram . | . . . Kick 2 | 1 . 1 Crush . | . . . Escape Stasis . | . . . Rewire . | . . . Trap . | . . . Miscellaneous . | . . . Route ------- -11/Scrapyard -10/Materials -9/Materials History --------- Turn | Location | Event 2 | -11/Scrapyard | Met Revision 17 65 | -11/Scrapyard | Discovered new exit (range 8) 95 | -11/Scrapyard | Entered Materials 203 | -10/Materials | Discovered new exit (range 15) 316 | -10/Materials | Build established: Mutant 568 | -10/Materials | Entered another Materials area 568 | -9/Materials | Evolved 2 slots: Propulsion x2 868 | -9/Materials | Self-destructed Last Messages --------------- 00843_ Current location identified: Materials >>Enumerate(Maintenance) Found 25 registered maintenance bots. 11 Workers 4 Builders 3 Tunnelers 6 Recyclers 1 Mechanic Downloaded coordinate data. 00851_ Aluminum Leg destroyed. 00866_ Critical hit (Burn: +37). 00867_ Neutrino Reactor explodes. 00867_ Flight Unit destroyed. 00867_ Destroyed Flight Unit. 00867_ Neutrino Reactor explodes. 00867_ Terminal disabled. 00867_ Door malfunctions. 00867_ G-34 Mercenary destroyed. 00867_ G-34 Mercenary shuts down. 00867_ G-47 Trooper destroyed. Map ----- +----------------------------------------------------+ | ""#????????# +????????#??????"???????# #??#??? | | ""#????? ?# #????##?????????? ??????# #?????? | | ""#? ??? ??# #????????#? ??"???"?"???# #?????? | | #??"???? # ##?????#????? ????? ????# #?????? | | # ?????? # ##?#??????? ? ?????????# #?????? | | ####+####### ######################### ####### | | % | | | | [ | | ###########+#############+######+######+#########? | | ????#?#### ##??# #% # #???? | | ?????????# "" #???# # # #???? | | #???????## """ #???# # # #???? | | ???#?????# """ ##??# # # #???? | | ?????? ??+ #???# # #???? | | ?#??????## """ #?#?# # #???? | | ?????????# """ #???# # # #???? | | ?????????# ""?????## # # ##??? | | #??#?????# ? ??############## ###########???? | | ?????????# ???#?# #/####?????????????? | | ???????#?# ???## # #?????#?????? ???? | | ?????????# ?????# # #????#???????????? | | ?????????? ???## # #????#???????????? | | ??????????##?????# # #????????????????? | | ?????????????????# !== # #?????#??????????? | | ?????????????????# @%=%!# # ???????????????? | | ????????????????## #####g### #????#???????????? | | ?????????????????????????# +????#???????????? | | ?????????????????????????# ##+#??#?????????????? | | ?????????????????????????# # ?? ?????????????? | | ?????????????????????????+ # ????#???????????? | | ?????????????????????????#^ # ???? ??????????? | | ?????????????????????????# # ????# ??????????? | | ???????????????????#????## # "??????????????? | | ?????????????????????????# # ???????????????? | | ?????????????????????????# # ???????????????? | | ?????????????????????????# # ???????????????? | | ?????????????????????????# + "??????????????? | | ?????????????????????????# # ??????????????? | | ?????????????????????????# ? ??????????????? | | ?????????????????????????# ?#####??????????????? | | ????????????????????????? ????????????????????? | | ?????????????????????????? ????????????????????? | | ?????????????????????????????????????????????????? | | ?????????????????????????????????????????????????? | | ?????????????????????????????????????????????????? | | ?????????????????????????????????????????????????? | | ?????????????????????????????????????????????????? | | ?????????????????????????????????????????????????? | | ?????????????????????????????????????????????????? | +----------------------------------------------------+ Best States ------------- Heat Dissipation 28 Energy Generation 10 Energy Capacity 250 Matter Stores 276 Matter Capacity 300 Sight Range 16 Terrain Scan Range 14 Terrain Scan Density 10 Evasion (%) 55 Item Schematics ----------------- None Robot Schematics ------------------ None Fabricated ------------ Nothing Repaired ---------- Nothing Studied --------- None Alien Tech Used ----------------- None Achievements -------------- None Challenges ------------ None Game ------ Seed NetworkedCooledConstruct Manual? 0 Play Time 00:13:14 Cumulative 0.5 hours Start 2026.07.17 @ 21:24:52 End 2026.07.17 @ 21:38:58 Sessions 1 Manual Loads 0 Difficulty Rogue Special Mode None Game No. 3 Rogue 3 Adventurer 0 Explorer 0 Win Type - Total 0 Types 0/0/0/0/0/0/0/0/0/0 Lore% 1 Gallery% 3 Achievement% 6 Wizard Run 0 Options --------- Layout 1 ASCII 0 Keyboard 0 Movement Mouse Keybinds 0 Fullscreen 1 Font 24/Smallcaps Map View 50x35 Zoom Use 0% Tactical HUD 1 Map Filters NONE Filters NONE Steam 1 RUN: deb94099-e2c6-452a-9b0d-fa5ce57c58d1